fUSD/lending_fUSD_20240324
["ID","MTS","AMOUNT","RATE_DAILY","PERIOD"]
[320292523,1711248654188,-151.032411,0.00025448,5]
[320292524,1711248654198,-150.0,0.00025451,2]
[320292525,1711248654206,-150.0,0.00025451,2]
[320292526,1711248654215,-2822.83905076,0.00025452,2]
[320292527,1711248654227,-4092.09737061,0.00025452,2]
[320292528,1711248654236,-150.0,0.00025452,2]
[320292529,1711248654246,-150.0,0.00025454,2]
[320292530,1711248654256,-150.0,0.00025459,2]
[320292531,1711248654266,-150.0,0.00025473,2]
[320292532,1711248654275,-150.0,0.00025474,2]
[320292533,1711248654284,-150.0,0.00025475,2]
[320292534,1711248654293,-500.0,0.00025479,2]
[320292535,1711248654302,-155.596664,0.00025479,7]
[320292536,1711248654312,-500.0,0.00025479,2]
[320292537,1711248654321,-151.0,0.00025479,7]
[320292538,1711248654330,-151.0,0.00025479,7]
[320292539,1711248654339,-2785.68689056,0.00025479,2]
[320292540,1711249160281,2000.0,0.00015003,2]
[320292542,1711249632157,-643.73756519,0.00015656,2]
[320292543,1711249632177,-204.71334846,0.00015657,2]
[320292544,1711249632197,-222.86318018,0.00015658,2]
[320292545,1711249632219,-211.8,0.0001576,2]
[320292546,1711249632241,-180.35,0.00017091,2]
[320292547,1711249632263,-1585.730067,0.00017501,2]
[320292548,1711249632285,-160.46296261,0.00017589,2]
[320292549,1711249632307,-250.0,0.00017619,2]
[320292550,1711249632332,-297.8,0.00017653,2]
[320292551,1711249632353,-877.2436,0.00017677,2]
[320292552,1711249632375,-234.49721795,0.00017709,2]
[320292553,1711249636137,-153.18278205,0.00017709,2]
[320292554,1711249636159,-150.0,0.00017766,2]
[320292555,1711249636183,-2845.42426943,0.00017767,2]
[320292565,1711249832460,-643.73756519,0.00017511,2]
[320292566,1711249832470,-643.0221326,0.00017512,2]
[320292567,1711249832648,-641.5,0.00017512,2]
[320292589,1711249837884,-12135.3378674,0.00017512,2]
[320292590,1711249837894,-362.87,0.00017512,2]
[320292591,1711249837903,-347.94,0.00017611,2]
[320292592,1711249837912,-2694.78,0.00017708,2]
[320292593,1711249837921,-3739.674,0.0001774,2]
[320292594,1711249837931,-314.15,0.0001778,3]
[320292595,1711249837940,-204.60113174,0.00017788,2]
[320292596,1711249837949,-4716.0918478,0.00017789,2]
[320292597,1711249837958,-1885.14604768,0.00017789,2]
[320292598,1711249837967,-4119.26810883,0.00017789,2]
[320292599,1711249838227,-1243.3653,0.0001779,2]
[320292600,1711249838238,-500.0,0.0001779,2]
[320292601,1711249838247,-218.8814,0.0001779,2]
[320292602,1711249838256,-20787.38629219,0.0001779,2]
[320292603,1711249838270,-2119.8796719,0.0001779,2]
[320292605,1711249838302,-701.68813675,0.0001779,2]
[320292611,1711249838398,-137413.16239916,0.0001779,2]
[320292612,1711249838407,-1000.0,0.0001779,2]
[320292613,1711249838416,-6768.24,0.0001779,2]
[320292614,1711249838426,-499.99,0.0001779,2]
[320292615,1711249838435,-1000.0,0.00017819,2]
[320292616,1711249838445,-177.0,0.00017835,2]
[320292617,1711249838454,-622.50443332,0.000179,2]
[320292618,1711249838463,-778.60357015,0.000179,2]
[320292619,1711249838473,-7500.0,0.000179,2]
[320292620,1711249838483,-158.32614089,0.000179,2]
[320292621,1711249838492,-175.2033955,0.000179,2]
[320292622,1711249838505,-1883.70706161,0.000179,2]
[320292623,1711249838515,-158.32614089,0.00017906,2]
[320292624,1711249838523,-158.32614089,0.00017912,2]
[320292625,1711249838533,-158.32614089,0.00017918,2]
[320292626,1711249838543,-158.32614089,0.00017924,2]
[320292627,1711249838552,-207.90969811,0.0001799,2]
[320292628,1711249838562,-207.90969811,0.0001799,2]
[320292629,1711249838572,-207.90969811,0.0001799,2]
[320292630,1711249838581,-196.31970432,0.00017998,2]
[320292631,1711249838591,-524.5308506,0.00017999,2]
[320292632,1711249838600,-1154232.66885661,0.00018,2]
[320292678,1711249843043,-155.0,0.00017999,2]
[320292681,1711249843054,-524.26870576,0.00018,2]
[320292704,1711249846400,-8525.0261,0.0001769,2]
[320292705,1711249846410,-2243.9641,0.000179,2]
[320292706,1711249846419,-166.28115449,0.00017999,2]
[320292707,1711249846429,-363.83126272,0.00017999,2]
[320292708,1711249846438,-3453.94738279,0.00018,2]
[320292715,1711249854588,363.14671547,0.00014399,2]
[320292719,1711250432895,178.39,0.00013777,2]
[320292720,1711250812304,155.65442777,0.00013777,2]
[320292721,1711250828046,2598.81652311,0.0001497,2]
[320292722,1711250830213,306.11567039,0.00013777,2]
[320292723,1711250853112,-155.0,0.00015068,2]
[320292724,1711250853133,-643.73756519,0.00015069,2]
[320292725,1711250853155,-284.89,0.00015073,2]
[320292726,1711250853174,-467.306103,0.00016859,2]
[320292727,1711250853194,-1086.22,0.00016915,2]
[320292728,1711250853218,-800.0,0.00016944,2]
[320292729,1711250853238,-250.0,0.00016953,2]
[320292730,1711250853258,-150.0,0.00017167,2]
[320292731,1711250853277,-150.0,0.00017167,2]
[320292732,1711250853297,-3429.84259095,0.00017168,2]
[320292740,1711251032040,-643.73756519,0.00017067,2]
[320292741,1711251032050,-5850.9325,0.00017068,2]
[320292742,1711251032060,-322.70898038,0.00017168,2]
[320292743,1711251032215,-639.87,0.00017168,2]
[320292744,1711251032271,-251.27663931,0.00017168,2]
[320292780,1711251038131,-13038.26178936,0.00017168,2]
[320292781,1711251038141,-292.94674724,0.00017168,2]
[320292782,1711251038154,-250.0,0.00017219,2]
[320292783,1711251038163,-500.0,0.00017234,2]
[320292784,1711251038173,-169.14,0.00017286,2]
[320292785,1711251038182,-239.72,0.00017286,2]
[320292786,1711251038192,-192.28,0.0001729,2]
[320292787,1711251038201,-284.89,0.00017337,2]
[320292788,1711251038210,-185.63,0.00017473,2]
[320292789,1711251038220,-12490.24469377,0.000175,2]
[320292790,1711251038229,-22010.04869948,0.00017666,2]
[320292791,1711251038239,-150.0,0.00017685,2]
[320292792,1711251038249,-3104.2524156,0.00017767,2]
[320292793,1711251038258,-250.87773669,0.00017819,2]
[320292794,1711251038268,-161.0,0.00017835,2]
[320292795,1711251038277,-200.0,0.00017885,2]
[320292796,1711251038286,-199.27678048,0.000179,2]
[320292797,1711251038297,-1000.0,0.000179,2]
[320292798,1711251038306,-1146.56383403,0.000179,2]
[320292799,1711251038315,-7500.0,0.000179,2]
[320292800,1711251038326,-158.22760764,0.000179,2]
[320292801,1711251038336,-954.3321032,0.000179,2]
[320292802,1711251038346,-23203.89131785,0.00017997,2]
[320292803,1711251038357,-1213.04358464,0.00017997,2]
[320292804,1711251038370,-166.92179785,0.00017997,2]
[320292805,1711251038379,-615.8881544,0.00017997,2]
[320292806,1711251038389,-155.80444542,0.00017997,2]
[320292807,1711251038401,-199.59716622,0.00017997,2]
[320292808,1711251038410,-155.0,0.00017997,2]
[320292809,1711251038419,-155.24275473,0.00017997,2]
[320292810,1711251038428,-375.64817306,0.00017998,2]
[320292811,1711251038437,-151.032411,0.00017998,2]
[320292812,1711251038448,-151.032411,0.00017998,2]
[320292813,1711251038457,-168.53660759,0.00017999,2]
[320292814,1711251038466,-2976.74064892,0.00017999,2]
[320292815,1711251038475,-165.55461078,0.00017999,2]
[320292816,1711251038485,-5511.86866723,0.00017999,2]
[320292817,1711251038495,-278.29437201,0.00017999,2]
[320292818,1711251038505,-359.55666915,0.00017999,2]
[320292819,1711251038514,-750.21136853,0.00017999,2]
[320292820,1711251038524,-205.7401387,0.00017999,2]
[320292821,1711251038534,-155.25307041,0.00017999,2]
[320292822,1711251038545,-681362.89071824,0.00017999,2]
[320292823,1711251038554,-103564.3491663,0.00018,2]
[320292825,1711251038568,-12435.63374687,0.00018,2]
[320292826,1711251038579,-3451.2,0.00018,2]
[320292827,1711251038590,-1470.31930461,0.00018,2]
[320292828,1711251038602,-1058.75135094,0.00018,2]
[320292829,1711251038613,-566.67802352,0.00018,2]
[320292830,1711251038624,-1309.14461714,0.00018,2]
[320292831,1711251038645,-5521.11415827,0.00018,2]
[320292832,1711251038678,-392.29328522,0.00018,2]
[320292841,1711251040129,-497.78693562,0.000179,2]
[320293048,1711251043089,-444.24779552,0.000179,2]
[320293056,1711251043149,-313.7699766,0.000179,2]
[320293058,1711251043159,-345.32,0.0001799,3]
[320293060,1711251043169,-513.86503899,0.00018,2]
[320293063,1711251043185,-2973.31320025,0.00018,2]
[320293067,1711251043217,-859.86944775,0.00018,2]
[320293070,1711251043469,-134.46770792,0.00018,2]
[320293071,1711251043483,-1148.5000006,0.00018,2]
[320293072,1711251043496,-384.566,0.00018,2]
[320293073,1711251043510,-540.98033726,0.00018,2]
[320293075,1711251046397,-15802.49875,0.00018,2]
[320293087,1711252232267,-329.61820133,0.00015334,2]
[320293098,1711252232702,-784.17302211,0.00015334,2]
[320293151,1711252238361,-115.49750389,0.00015334,2]
[320293152,1711252238371,-266.83,0.00015336,2]
[320293153,1711252238380,-81.72673489,0.0001691,2]
[320293154,1711252238392,-168.27326511,0.0001691,2]
[320293155,1711252238401,-360.0,0.00016933,2]
[320293156,1711252238411,-500.0,0.00017011,2]
[320293157,1711252238420,-191.77,0.00017011,2]
[320293158,1711252238430,-250.0,0.00017056,2]
[320293159,1711252238439,-1065.13,0.00017058,2]
[320293160,1711252238448,-192.28,0.00017125,2]
[320293161,1711252238458,-723.47,0.00017193,2]
[320293162,1711252238467,-1561.0,0.00017198,2]
[320293163,1711252238477,-394.17466622,0.00017278,2]
[320293164,1711252238489,-245.82533378,0.00017278,2]
[320293165,1711252238499,-150.0,0.00017595,2]
[320293166,1711252238509,-665.85472122,0.00017598,2]
[320293167,1711252238521,-1082.8479996,0.00017598,2]
[320293168,1711252238533,-1286.31668087,0.00017598,2]
[320293169,1711252238557,-9455.22529208,0.00017598,2]
[320293170,1711252238567,-37941.59898867,0.00017599,2]
[320293171,1711252238576,-266.83,0.000176,2]
[320293172,1711252238586,-2698.7106,0.00017719,2]
[320293173,1711252238595,-3596.51513684,0.00017889,2]
[320293174,1711252238605,-174.05036841,0.00017898,2]
[320293175,1711252238614,-1346.6803989,0.00017898,2]
[320293176,1711252238623,-179.65078659,0.00017898,2]
[320293177,1711252238633,-174.05036841,0.00017899,2]
[320293178,1711252238642,-588.3926,0.00017899,2]
[320293179,1711252238652,-47142.6446264,0.00017899,2]
[320293181,1711252238664,-1613.18836489,0.00017899,2]
[320293183,1711252238676,-25016.37903127,0.00017899,2]
[320293185,1711252238691,-2673.01788411,0.00017899,2]
[320293187,1711252238702,-883.00965683,0.00017899,2]
[320293208,1711252240289,-643.73756519,0.00015333,2]
[320293209,1711252240298,-22671.7604365,0.00017899,2]
[320293210,1711252240308,-6259.6255,0.00017899,2]
[320293211,1711252240317,-174.05036841,0.00017899,2]
[320293212,1711252240327,-1000.0,0.000179,2]
[320293213,1711252240336,-7500.0,0.000179,2]
[320293214,1711252240345,-174.05036841,0.000179,2]
[320293215,1711252240355,-837.2031385,0.000179,2]
[320293216,1711252240365,-190.89966323,0.0001798,2]
[320293217,1711252240374,-95548.67295976,0.0001799,5]
[320293218,1711252240398,-1067.45272205,0.0001799,5]
[320293219,1711252240410,-7060.47262,0.0001799,5]
[320293220,1711252240473,-439.62,0.0001799,5]
[320293261,1711252243282,-250.83401658,0.0001799,5]
[320293289,1711252243570,-17034.67516191,0.0001799,5]
[320293292,1711252243583,-2048.01355821,0.0001799,5]
[320293294,1711252243595,-3713.93344955,0.0001799,5]
[320293304,1711252243685,-5164.48527723,0.0001799,5]
[320293306,1711252243697,-3082.7552651,0.0001799,5]
[320293339,1711252246519,-5197.25387162,0.0001799,5]
[320293340,1711252246611,-852.00778806,0.0001799,5]
[320293361,1711253190736,643.73756519,0.00015002,2]
[320293362,1711253225104,-204.71334846,0.00015003,2]
[320293363,1711253225125,-1229.28872733,0.00015003,2]
[320293364,1711253225145,-276.7,0.00015006,2]
[320293365,1711253225168,-1585.730067,0.00016881,2]
[320293366,1711253225190,-250.0,0.00016966,2]
[320293367,1711253225211,-288.0,0.00016985,2]
[320293368,1711253225232,-218.77,0.00017078,2]
[320293369,1711253225254,-250.0,0.00017097,2]
[320293370,1711253225275,-150.0,0.00017169,2]
[320293371,1711253225300,-416.02692435,0.0001717,2]
[320293372,1711253225411,1392.95109697,0.00015002,2]
[320293377,1711253234210,-3148.65394307,0.0001717,2]
[320293425,1711253431444,-800.0,0.00016635,2]
[320293427,1711253431457,-429.28872733,0.00016635,2]
[320293428,1711253431467,-588.0791052,0.00016636,2]
[320293429,1711253431502,-340.55495944,0.00016636,2]
[320293430,1711253431512,-32.33391317,0.00016637,2]
[320293431,1711253431534,-265.49608683,0.00016637,2]
[320293432,1711253431544,-480.92269685,0.00016675,2]
[320293433,1711253431617,-532.02211302,0.00016675,2]
[320293434,1711253431734,-9638.40519013,0.00016675,2]
[320293435,1711253431753,-222.86318018,0.00016968,2]
[320293436,1711253431765,-546.07309939,0.0001707,2]
[320293438,1711253431803,-750.0,0.0001707,2]
[320293460,1711253437876,-1235.82890323,0.0001707,2]
[320293461,1711253437994,-267.58761884,0.0001707,2]
[320293462,1711253438007,-45.93457854,0.0001707,2]
[320293463,1711253438016,-150.0,0.00017088,2]
[320293464,1711253438026,-150.0,0.00017119,2]
[320293465,1711253438036,-150.0,0.00017151,2]
[320293466,1711253438045,-150.0,0.00017169,2]
[320293467,1711253438055,-150.0,0.00017183,2]
[320293468,1711253438064,-150.0,0.00017214,2]
[320293469,1711253438074,-150.0,0.00017246,2]
[320293470,1711253438083,-276.7,0.0001727,2]
[320293471,1711253438094,-612.55,0.00017272,2]
[320293472,1711253438105,-150.0,0.00017278,2]
[320293473,1711253438115,-150.0,0.00017309,2]
[320293474,1711253438124,-712.0,0.00017315,2]
[320293475,1711253438134,-150.0,0.00017341,2]
[320293476,1711253438143,-150.0,0.00017372,2]
[320293477,1711253438154,-150.0,0.00017404,2]
[320293478,1711253438163,-150.0,0.00017436,2]
[320293480,1711253438173,-150.0,0.00017467,2]
[320293481,1711253438183,-150.0,0.00017499,2]
[320293484,1711253438193,-8989.50874842,0.000175,2]
[320293486,1711253438205,-804.32008571,0.000175,2]
[320293488,1711253439335,1932.1657104,0.00016673,7]
[320293489,1711253439550,-1608.81380445,0.000175,2]
[320293490,1711253439562,-640.125,0.000175,2]
[320293491,1711253439668,-409.64,0.000175,2]
[320293492,1711253439905,-37.83705519,0.000175,2]
[320293493,1711253439915,-150.0,0.00017531,2]
[320293494,1711253439924,-150.0,0.00017562,2]
[320293495,1711253439934,-182.46,0.00017576,2]
[320293496,1711253439943,-150.0,0.00017594,2]
[320293497,1711253439953,-150.0,0.00017626,2]
[320293498,1711253439962,-126.28258358,0.00017657,2]
[320293597,1711253442681,-23.71741642,0.00017657,2]
[320293599,1711253442691,-150.0,0.00017689,2]
[320293601,1711253442701,-150.0,0.00017721,2]
[320293603,1711253442710,-182.46,0.00017752,2]
[320293605,1711253442720,-150.0,0.00017752,2]
[320293607,1711253442732,-98.58199017,0.00017784,2]
[320293610,1711253442746,-51.41800983,0.00017784,2]
[320293612,1711253442755,-161.0,0.00017808,2]
[320293614,1711253442765,-150.0,0.00017815,2]
[320293616,1711253442774,-150.0,0.00017847,2]
[320293618,1711253442783,-150.0,0.00017879,2]
[320293620,1711253442793,-151.032411,0.00017898,2]
[320293622,1711253442802,-151.032411,0.00017898,2]
[320293624,1711253442812,-151.032411,0.00017898,3]
[320293626,1711253442821,-151.032411,0.00017898,3]
[320293628,1711253442831,-151.032411,0.00017898,3]
[320293629,1711253442840,-151.032411,0.00017898,3]
[320293631,1711253442849,-151.032411,0.00017898,3]
[320293633,1711253442859,-151.032411,0.00017898,3]
[320293635,1711253442868,-151.032411,0.00017898,2]
[320293636,1711253442877,-151.032411,0.00017898,2]
[320293638,1711253442887,-151.032411,0.00017898,2]
[320293640,1711253442896,-835.0405903,0.00017898,2]
[320293642,1711253442909,-1234.45703238,0.00017898,2]
[320293644,1711253442919,-558.13542566,0.000179,2]
[320293646,1711253442929,-150.0,0.0001791,2]
[320293648,1711253442938,-182.46,0.00017928,2]
[320293650,1711253442949,-150.0,0.00017942,2]
[320293651,1711253442959,-150.0,0.00017974,2]
[320293654,1711253442969,-3000.0,0.0001798,2]
[320293656,1711253442979,-277.99344049,0.00017988,2]
[320293658,1711253442989,-312.10999552,0.00017988,2]
[320293660,1711253442999,-333.30949905,0.00017988,2]
[320293662,1711253443008,-205.24104876,0.00017988,2]
[320293663,1711253443018,-280.47682781,0.00017989,2]
[320293666,1711253443027,-56008.66083426,0.0001799,5]
[320293719,1711253443572,-869.05905067,0.0001799,5]
[320293720,1711253443583,-3588.63899676,0.0001799,5]
[320293721,1711253443624,-549.32157576,0.0001799,5]
[320293821,1711253445566,-286.09779877,0.0001799,5]
[320293822,1711253445625,-1006.8,0.0001799,5]
[320293823,1711253445687,-578.27941501,0.0001799,5]
[320293824,1711253445800,-255.0,0.0001799,5]
[320293825,1711253445874,-589.38492955,0.0001799,5]
[320293833,1711253555751,261.35,0.00014981,2]
[320293834,1711253803604,157.33,0.00017808,10]
[320293835,1711253855329,196.68,0.00024977,120]
[320293836,1711254029456,248.28,0.00014717,2]
[320293837,1711254439323,-467.306103,0.00016358,2]
[320293838,1711254439343,-202.93278222,0.0001644,2]
[320293839,1711254439366,-773.86172054,0.00016441,2]
[320293840,1711254439388,-162.0021588,0.00016442,2]
[320293841,1711254439413,-1229.28872733,0.00016458,2]
[320293842,1711254439433,-250.0,0.00016525,2]
[320293843,1711254439455,-250.0,0.00016525,2]
[320293844,1711254439476,-150.0,0.00016543,2]
[320293845,1711254439499,-3931.62807238,0.00016544,2]
[320293846,1711254520532,261.2,0.00014689,2]
[320293851,1711254631656,-459.75323735,0.00016541,2]
[320293852,1711254631822,-459.39752795,0.00016541,2]
[320293853,1711254631835,-310.13796203,0.00016541,2]
[320293854,1711254631844,-354.00293609,0.00016542,2]
[320293855,1711254631856,-49.17902031,0.00016542,2]
[320293856,1711254631866,-1768.03192762,0.00016544,2]
[320293857,1711254631875,-185.65,0.00016544,2]
[320293858,1711254631885,-743.74,0.00016545,2]
[320293859,1711254631895,-241.74,0.00016579,2]
[320293860,1711254631904,-769.6,0.0001658,2]
[320293861,1711254631914,-230.4,0.00016612,2]
[320293862,1711254631924,-162.00215879,0.00016649,2]
[320293863,1711254631933,-196.68,0.00016651,2]
[320293864,1711254631943,-156.31,0.00016675,2]
[320293865,1711254631953,-162.00215879,0.00016856,2]
[320293866,1711254631962,-261.2,0.00016953,2]
[320293867,1711254631976,-150.0,0.00016966,2]
[320293868,1711254631985,-150.0,0.00016966,2]
[320293869,1711254631995,-1871.8916177,0.00016967,2]
[320293870,1711254632005,-162.00215879,0.00017063,2]
[320293871,1711254632014,-150.0,0.00017088,2]
[320293872,1711254632024,-188.29,0.00017096,2]
[320293873,1711254632033,-156.31,0.00017109,2]
[320293874,1711254632043,-150.0,0.00017149,2]
[320293875,1711254632053,-7673.7209668,0.0001717,2]
[320293876,1711254632063,-150.0,0.0001721,2]
[320293877,1711254632072,-188.29,0.00017267,2]
[320293878,1711254632082,-162.00215879,0.00017269,2]
[320293879,1711254632092,-171.43,0.0001727,2]
[320293880,1711254632102,-150.0,0.00017271,2]
[320293882,1711254632111,-150.0,0.00017333,2]
[320293884,1711254632121,-150.0,0.00017394,2]
[320293886,1711254632130,-188.29,0.00017438,2]
[320293888,1711254632139,-150.0,0.00017455,2]
[320293890,1711254632149,-162.00215879,0.00017476,2]
[320293892,1711254632159,-12490.24469377,0.000175,2]
[320293894,1711254632168,-150.0,0.00017516,2]
[320293896,1711254632178,-156.31,0.00017544,2]
[320293910,1711254632472,-150.0,0.00017578,2]
[320293911,1711254632483,-150.0,0.00017639,2]
[320293912,1711254632492,-162.00215879,0.00017683,2]
[320293913,1711254632502,-150.0,0.000177,2]
[320293914,1711254632512,-150.0,0.00017761,2]
[320293915,1711254632523,-250.85014333,0.00017808,2]
[320293916,1711254632532,-150.0,0.00017823,2]
[320293917,1711254632541,-161.0,0.00017835,2]
[320293918,1711254632551,-150.0,0.00017884,2]
[320293919,1711254632561,-1083.72399371,0.00017888,2]
[320293920,1711254632571,-202.52429144,0.00017889,2]
[320293921,1711254632581,-243.03760532,0.0001789,2]
[320293922,1711254632590,-162.00215879,0.0001789,2]
[320293923,1711254632599,-1298.73627798,0.0001789,2]
[320293924,1711254632609,-235.56091496,0.0001789,2]
[320293925,1711254632619,-23189.6035,0.0001789,2]
[320293926,1711254632629,-1867.6338,0.0001789,2]
[320293927,1711254632639,-16130.3615091,0.0001789,2]
[320293928,1711254632652,-1463.8799827,0.0001789,2]
[320293929,1711254632668,-518.37829432,0.0001789,2]
[320293930,1711254632690,-1016.08681388,0.0001789,2]
[320293931,1711254632700,-2179.96318612,0.0001789,2]
[320293932,1711254632713,-2306.77941388,0.0001789,2]
[320293933,1711254632722,-1000.0,0.0001789,2]
[320293934,1711254632731,-215.683,0.0001789,2]
[320293935,1711254632741,-243.03760532,0.00017893,2]
[320293936,1711254632750,-41.3330417,0.00017895,2]
[320293937,1711254632762,-201.70456362,0.00017895,2]
[320293938,1711254632772,-243.03760532,0.00017898,2]
[320293939,1711254632781,-199.27678047,0.000179,2]
[320293940,1711254632790,-7500.0,0.000179,2]
[320293941,1711254632799,-243.03760532,0.000179,2]
[320293942,1711254632808,-558.22912107,0.000179,2]
[320293943,1711254632817,-150.0,0.00017945,2]
[320293944,1711254632826,-345.32,0.0001798,3]
[320293945,1711254632836,-155.85823455,0.00017988,2]
[320293946,1711254632845,-151.032411,0.00017988,2]
[320293947,1711254632854,-151.032411,0.00017988,2]
[320293948,1711254632864,-151.032411,0.00017988,2]
[320293949,1711254632873,-151.032411,0.00017988,2]
[320293950,1711254632882,-151.032411,0.00017988,2]
[320293951,1711254632891,-151.032411,0.00017988,3]
[320293952,1711254632900,-151.032411,0.00017988,3]
[320293953,1711254632909,-151.032411,0.00017988,3]
[320293954,1711254632918,-151.032411,0.00017988,3]
[320293955,1711254632928,-151.032411,0.00017988,3]
[320293956,1711254632937,-453.42757854,0.00017988,2]
[320293957,1711254632946,-643.73756519,0.00017988,2]
[320293958,1711254632963,-155.0,0.00017988,2]
[320293959,1711254632976,-613.55627316,0.00017988,2]
[320293960,1711254632985,-155.1708277,0.00017989,2]
[320293961,1711254632995,-408.89933385,0.00017989,2]
[320293962,1711254633004,-3019.24236,0.00017989,2]
[320293963,1711254633014,-942.0,0.0001799,2]
[320293964,1711254633026,-882163.69627043,0.0001799,5]
[320293965,1711254633040,-579.978432,0.0001799,5]
[320293984,1711254637626,-7402.51562397,0.0001799,5]
[320293985,1711254637639,-5172.58069539,0.0001799,5]
[320293986,1711254637650,-2625.270672,0.0001799,5]
[320293987,1711254637663,-2143.8,0.0001799,5]
[320293988,1711254637675,-2655.83300864,0.0001799,5]
[320293989,1711254637795,-95461.20568446,0.0001799,5]
[320293990,1711254637806,-22316.21035425,0.0001799,2]
[320293991,1711254637819,-83394.51358742,0.0001799,2]
[320293992,1711254637829,-155.0,0.00017998,2]
[320293993,1711254637839,-3665.159,0.00017999,2]
[320293994,1711254637849,-343.0245259,0.00017999,2]
[320293995,1711254637859,-2173.11708694,0.00017999,2]
[320293996,1711254637868,-5250.20559075,0.00017999,2]
[320293997,1711254637878,-155.43357442,0.00017999,2]
[320293998,1711254637887,-1053.76796528,0.00017999,2]
[320293999,1711254637896,-1584.68807491,0.00017999,2]
[320294000,1711254637906,-1053.47350893,0.00017999,2]
[320294001,1711254637915,-2008.02248347,0.00017999,2]
[320294002,1711254637925,-410.65184247,0.00017999,2]
[320294003,1711254637936,-236.07933468,0.00017999,2]
[320294004,1711254637947,-150.01,0.00017999,2]
[320294005,1711254637957,-5008.75142261,0.00017999,2]
[320294006,1711254637967,-252.5102823,0.00017999,2]
[320294007,1711254637979,-3626.92,0.00018,2]
[320294008,1711254637989,-144978.49058417,0.00018,2]
[320294009,1711254638002,-845.02,0.00018,2]
[320294010,1711254638019,-29267.46188515,0.00018,2]
[320294011,1711254638061,-1550.0,0.00018,2]
[320294026,1711254639828,-103420.66033191,0.00018,2]
[320294027,1711254639899,-173884.08167849,0.00018,2]
[320294028,1711254639962,-665.59469728,0.00018,2]
[320294029,1711254640027,-1597.865,0.00018,2]
[320294030,1711254640039,-595.03320887,0.00018,2]
[320294052,1711254642768,-841.0,0.00018,2]
[320294054,1711254642781,-1076.0,0.00018,2]
[320294059,1711254642831,-13783.88055455,0.00018,2]
[320294061,1711254642846,-4500.17809883,0.00018,2]
[320294093,1711254645827,-4165.2301,0.00016755,2]
[320294094,1711254645836,-59735.76990002,0.0001789,2]
[320294095,1711254645864,-465.38955513,0.0001789,2]
[320294096,1711254645876,-3150.39333094,0.0001789,2]
[320294097,1711254645904,-754.78079673,0.0001789,2]
[320294098,1711254645916,-15403.16038208,0.0001789,2]
[320294099,1711254645953,-547.84176427,0.0001789,2]
[320294100,1711254646016,-7824.72983353,0.0001789,2]
[320294101,1711254646027,-932.04458442,0.0001789,2]
[320294102,1711254646041,-473.05077416,0.0001789,2]
[320294103,1711254646053,-254.92884415,0.0001789,2]
[320294104,1711254646082,-258.97201343,0.0001789,2]
[320294105,1711254646098,-500.0,0.0001789,2]
[320294106,1711254646137,-729.84447546,0.0001789,2]
[320294147,1711254969953,235.08,0.00014915,2]
[320294148,1711255399693,223.32,0.00014719,2]
[320294171,1711255684329,196.68,0.00024916,120]
[320294194,1711255832389,-1229.28872733,0.00016478,2]
[320294195,1711255832398,-403.1819564,0.00016479,2]
[320294196,1711255832408,-163.40122595,0.0001648,2]
[320294197,1711255832417,-58183.8480908,0.0001648,2]
[320294198,1711255832453,-2815.80071661,0.0001648,2]
[320294199,1711255832464,-833.36001832,0.0001648,2]
[320294200,1711255832475,-537.12016184,0.0001648,2]
[320294201,1711255832518,-561.51132701,0.0001648,2]
[320294202,1711255832529,-653.43369802,0.0001648,2]
[320294203,1711255832541,-500.0,0.0001648,2]
[320294208,1711255837970,-328.92787868,0.0001648,2]
[320294209,1711255838026,-568.59559293,0.0001648,2]
[320294210,1711255838083,-574.96699351,0.0001648,2]
[320294211,1711255838098,-2475.66949071,0.0001648,2]
[320294212,1711255838112,-362.26956143,0.0001648,2]